{"text_format":"1","workbook":"xlsx","n_sheets":1,"sheets":["1"],"not_rendered":{"charts":0,"images":0,"macros":1,"external_links":0,"defined_names":2,"comments":0,"pivot_tables":0},"unopened":[],"bounds":{"document_bytes":16777216,"sheet_cells":100000,"rows_first":2000,"rows_last":500,"rows_between":2000,"halvings":0,"cell_chars":16384,"cell_head_chars":4096},"cells_cut":0,"cells_raw":0,"read":"whole","date_system":"1900"}

{"sheet":"1","index":0,"n_rows":10,"n_cols":9,"rows_kept":10,"cut":false,"hidden":false,"merged":[]}
[5,1,2,3,4,null,null,"المطلوب"]
["الأسم","الاسم الاول","أسم الأب","الجد الاول","الجد الثانى",null,null,"الاسم الاول","باقى الاسم"]
["ابتسام عبد الرووف احمد السيد",{"$f":"Kh_Name($A3,B$1)","v":"ابتسام"},"عبد الرووف","احمد","السيد",null,null,"ابتسام",{"$f":"C3&\" \"&D3&\" \"&E3","v":"عبد الرووف احمد السيد"}]
["ابتسام عبد السميع ضاحى فراج","ابتسام","عبد السميع","ضاحى","فراج",null,null,"ابتسام",{"$f":"C4&\" \"&D4&\" \"&E4","v":"عبد السميع ضاحى فراج"}]
["اروى عمر كامل سيد","اروى","عمر","كامل","سيد",null,null,"اروى","عمر كامل سيد"]
["اسراء السيد محمد السيد","اسراء","السيد","محمد","السيد",null,null,"اسراء","السيد محمد السيد"]
["اسراء الصاوى احمد صبره","اسراء","الصاوى","احمد","صبره",null,null,"اسراء","الصاوى احمد صبره"]
["اسراء صلاح محمود محمد","اسراء","صلاح","محمود","محمد",null,null,"اسراء","صلاح محمود محمد"]
["اسراء محمود احمد خليل","اسراء","محمود","احمد","خليل",null,null,"اسراء","محمود احمد خليل"]
["اسماء ابو النور احمد محمد","اسماء","ابو النور","احمد","محمد",null,null,"اسماء","ابو النور احمد محمد"]